Cogmind - Beta 12 @@@ ROGUE MODE // 2023.11.15 @ 20:32:34 Player: arkn Result: Destroyed by G-34 Mercenary with Small Laser Performance ------------- Evolutions (0) 0 Regions Visited (4) 800 Robots Destroyed (22) 110 Value Destroyed (534) 534 Prototype IDs (23) 460 Alien Tech Used (0) 0 Bonus (300) 300 TOTAL SCORE: 2204 Bonus ------- Aligned with FarCom 300 Cogmind --------- Core Integrity 0/250 Matter 226/300 Energy 250/250 System Corruption 0% Temperature Cool (6) Movement Treading (160) Location -9/Mines Parts ------- > --- POWER (1) -------- Ion Engine > --- PROPULSION (2) --- Improved Treads Improved Treads > --- UTILITY (2) ------ Heat Sink Medium Storage Unit > --- WEAPON (2) ------- Heavy Assault Rifle > --- INVENTORY (10) --- Aluminum Leg Structural Scanner Chronowheel Heavy Assault Rifle Heavy Assault Rifle Rocket Launcher Hammer Mining Claw Mining Claw Peak State ------------ > --- POWER ------------ Ion Engine > --- PROPULSION ------- Improved Treads Improved Treads > --- UTILITY ---------- Heat Sink Medium Storage Unit > --- WEAPON ----------- Heavy Assault Rifle Heavy Assault Rifle > --- INVENTORY -------- Aluminum Leg Structural Scanner Chronowheel Heavy Assault Rifle Heavy Assault Rifle Hammer Mining Claw Mining Claw [Rating: 13] Favorites ----------- Power Ion Engine Engine Ion Engine Propulsion Improved Treads Treads Improved Treads Leg Aluminum Leg Utility Medium Storage Unit Device Heat Sink Storage Medium Storage Unit Weapon Heavy Assault Rifle Energy Gun Medium Laser Energy Cannon Particle Cannon Ballistic Gun Heavy Assault Rifle Launcher Rocket Launcher Impact Weapon Hammer Slashing Weapon Mining Claw Build | -11 -10 -10 -10 -9 ------- Run | Jun Mat Min Exi Min Slots Evolved . | . . . . . Power . | . . . . . Propulsion . | . . . . . Utility . | . . . . . Weapon . | . . . . . Parts Attached 18 | . 16 . . 2 Power 2 | . 2 . . . Engine 2 | . 2 . . . Core . | . . . . . Reactor . | . . . . . Propulsion 4 | . 4 . . . Treads 4 | . 4 . . . Leg . | . . . . . Wheel . | . . . . . Hover . | . . . . . Flight . | . . . . . Utility 3 | . 3 . . . Device 1 | . 1 . . . Storage 2 | . 2 . . . Processor . | . . . . . Hackware . | . . . . . Protection . | . . . . . Artifact . | . . . . . Weapon 9 | . 7 . . 2 Energy Gun 2 | . 2 . . . Energy Cannon 1 | . 1 . . . Ballistic Gun 3 | . 2 . . 1 Ballistic Cannon . | . . . . . Launcher 1 | . . . . 1 Special Weapon . | . . . . . Impact Weapon 1 | . 1 . . . Slashing Weapon 1 | . 1 . . . Piercing Weapon . | . . . . . Special Melee Weapon . | . . . . . Unidentified Prototypes . | . . . . . Parts Lost 10 | . 10 . . . Power 2 | . 2 . . . Propulsion 4 | . 4 . . . Utility . | . . . . . Weapon 4 | . 4 . . . Highest Loss Streak 6 | . 6 . . . To Critical Strikes . | . . . . . Average Slot Usage (%) 96 | . 92 100 100 99 Engine 13 | . 13 14 14 14 Treads 23 | . 18 28 28 28 Leg 4 | . 8 . . . Device 11 | . 8 14 14 14 Storage 14 | . 14 14 14 14 Energy Gun 5 | . 10 . . . Ballistic Gun 18 | . 9 28 28 27 Impact Weapon 1 | . 3 . . . Slashing Weapon 1 | . 2 . . . Naked Turns . | . . . . . Heaviest Build 22 | 14 22 22 22 22 Greatest Support 46 | 20 46 46 46 46 Greatest Overweight (x) 1 | . 1 . . . Average Overweight (x) . | . . . . . Largest Inventory Capacity 10 | . 10 10 10 10 Average Capacity 9 | . 9 10 10 10 Most Carried 10 | . 10 7 8 10 Average Carried 8 | . 8 7 7 8 Final Capacity 10 | 8 10 10 10 10 Final Carried 9 | 6 7 7 8 9 Class Distribution -------------------- 100% | Mutant Dominant Class ---------------- Mutant | -10/Materials Mutant | -10/Mines Mutant | -10/Exiles Mutant | -9/Mines Resources | -11 -10 -10 -10 -9 ----------- Run | Jun Mat Min Exi Min Matter Collected 564 | 200 358 . . 6 Remotely . | . . . . . Salvage Created 662 | . 605 . . 57 Parts 41 | . 39 . . 2 Haulers Intercepted 1 | . 1 . . . Recyclers Shooed . | . . . . . Parts Field Recycled . | . . . . . Retrieved Matter . | . . . . . Parts Self-Destructed . | . . . . . Prevented . | . . . . . Kills | -11 -10 -10 -10 -9 ------- Run | Jun Mat Min Exi Min Combat Hostiles Destroyed 20 | . 18 . . 2 Melee 1 | . 1 . . . Guns 17 | . 16 . . 1 Cannons 1 | . 1 . . . AOE 1 | . . . . 1 Classes Destroyed 5 | . 4 . . 1 Worker 1 | . 1 . . . Hauler 1 | . 1 . . . Swarmer 8 | . 8 . . . Grunt 11 | . 10 . . 1 Duelist 1 | . . . . 1 Best Kill Streak 5 | . 5 . . 2 Combat Bots Only 5 | . 5 . . 2 Max Kills in Single Turn 2 | . 2 . . 1 Gunslinging 1 | . 1 . . . Exploded 1 | . . . . 1 Melee 1 | . 1 . . . Uniques/NPCs Destroyed . | . . . . . Combat | -11 -10 -10 -10 -9 -------- Run | Jun Mat Min Exi Min Damage Taken 1666 | . 1512 . . 154 Core 251 | . 230 . . 21 Absorbed by Shields . | . . . . . Core Remaining (%) 100 | 100 . . . . Volleys Fired 78 | . 69 . . 9 Largest 2 | . 2 . . 2 Hottest 108 | . 108 . . 46 Shots Fired 132 | . 122 . . 10 Gun 114 | . 107 . . 7 Cannon 15 | . 15 . . . Launcher 3 | . . . . 3 Special . | . . . . . Kinetic 75 | . 68 . . 7 Thermal 52 | . 52 . . . Explosive 3 | . . . . 3 Electromagnetic 2 | . 2 . . . Robot Hit Streak 8 | . 8 . . 4 Robot Miss Streak 4 | . 4 . . 3 Penetration Max . | . . . . . Secondary Targets 3 | . 3 . . . Max Gunslinging Chain 1 | . 1 . . . Shots Hit Robots 84 | . 79 . . 5 Core Hits 36 | . 29 . . 7 Critical Kills . | . . . . . Critical Parts Destroyed . | . . . . . Critical Strikes 1 | . 1 . . . Burn 1 | . 1 . . . Melee Attacks 16 | . 16 . . . Impact 11 | . 11 . . . Slashing 5 | . 5 . . . Piercing . | . . . . . Sneak Attacks 1 | . 1 . . . Combat Hostiles . | . . . . . Follow-up Attacks . | . . . . . Damage Inflicted 1508 | . 1214 . . 294 Guns 963 | . 878 . . 85 Cannons 143 | . 143 . . . Explosions 209 | . . . . 209 Melee 191 | . 191 . . . Ramming 2 | . 2 . . . Kinetic 677 | . 592 . . 85 Thermal 417 | . 417 . . . Explosive 209 | . . . . 209 Electromagnetic 12 | . 12 . . . Impact 117 | . 117 . . . Slashing 74 | . 74 . . . Piercing . | . . . . . Highest Corruption . | . . . . . Average Corruption . | . . . . . Corruption Purged . | . . . . . Corruption Blocked . | . . . . . Overload Shots . | . . . . . Overflow Damage 2 | . 2 . . . Projectiles 2 | . 2 . . . Explosions . | . . . . . Melee . | . . . . . Knockbacks . | . . . . . Impact . | . . . . . Kinetic . | . . . . . Secondary . | . . . . . Self-Inflicted Damage . | . . . . . Shots . | . . . . . Rammed 1 | . 1 . . . Targets Rammed 1 | . 1 . . . Kicked . | . . . . . Crushed . | . . . . . Highest Temperature 532 | . 532 . . . Average Temperature 148 | . 148 . . . Received Heat Transfer 696 | . 648 . . 48 Effects 6 | . 6 . . . Shutdowns 1 | . 1 . . . Energy Bleed 1 | . 1 . . . Matter Decay 2 | . 2 . . . Damage (minor) 2 | . 2 . . . Siege Activations . | . . . . . Robots Corrupted . | . . . . . Combat Hostiles . | . . . . . Parts Fried . | . . . . . Impact Corruptions . | . . . . . Robots Melted . | . . . . . Combat Hostiles . | . . . . . Parts Melted . | . . . . . Heat Transferred 1147 | . 1147 . . . Parts Sabotaged . | . . . . . Parts Stolen . | . . . . . Parts Stripped . | . . . . . Power Chain Reactions . | . . . . . Missiles Intercepted . | . . . . . Alert | -11 -10 -10 -10 -9 ------- Run | Jun Mat Min Exi Min Peak Influence 240 | . 240 34 . 83 Initial 34 | . . 34 . . Average 82 | . 116 34 . 2 Maximum Alert Level 1 | . 1 . . . Low Security (%) 89 | . 85 100 . 100 Level 1 10 | . 14 . . . Level 2 . | . . . . . Level 3 . | . . . . . Level 4 . | . . . . . Level 5 . | . . . . . High Security . | . . . . . Max Security . | . . . . . Squads Dispatched 4 | . 4 . . . Investigation 3 | . 3 . . . Extermination . | . . . . . Reinforcement 1 | . 1 . . . Assault . | . . . . . Garrison . | . . . . . Intercept . | . . . . . Searches Triggered . | . . . . . Construction Impeded . | . . . . . Haulers Reinforced . | . . . . . Active Scanning Responses . | . . . . . Cargo Convoy Interrupts . | . . . . . Stealth | -11 -10 -10 -10 -9 --------- Run | Jun Mat Min Exi Min Distress Signals 5 | . 5 . . . Communications Jammed . | . . . . . Distress Signals . | . . . . . Times Spotted 38 | . 35 . . 3 Peak Tracking Total 7 | . 7 . . 3 Tactical Retreats 5 | . 5 . . . Traps | -11 -10 -10 -10 -9 ------- Run | Jun Mat Min Exi Min Traps Triggered 2 | . 2 . . . Indirectly . | . . . . . Trap Hack Attempts . | . . . . . Triggered . | . . . . . Disarmed . | . . . . . Reprogrammed . | . . . . . Reused . | . . . . . Traps Extracted . | . . . . . Installed . | . . . . . Triggered . | . . . . . Machines | -11 -10 -10 -10 -9 ---------- Run | Jun Mat Min Exi Min Machines Disabled 3 | . 2 . . 1 Max in Single Turn 1 | . 1 . . 1 Machines Repaired . | . . . . . Machines Sabotaged . | . . . . . Overloaded Fab Kills . | . . . . . Hacking | -11 -10 -10 -10 -9 --------- Run | Jun Mat Min Exi Min Machines Accessed 7 | . 6 . 1 . Terminals 5 | . 5 . . . Fabricators . | . . . . . Repair Stations . | . . . . . Recycling Units 1 | . 1 . . . Scanalyzers . | . . . . . Garrison Access . | . . . . . Total Hacks 17 | . 16 . 1 . Successful 13 | . 12 . 1 . Failed 4 | . 4 . . . Catastrophic 1 | . 1 . . . Database Lockouts . | . . . . . Manual 14 | . 13 . 1 . Terminals 15 | . 15 . . . Fabricators . | . . . . . Repair Stations . | . . . . . Recycling Units 1 | . 1 . . . Scanalyzers . | . . . . . Garrison Access . | . . . . . Terminal Hacks 3 | . 2 . 1 . Maintenance Status 1 | . 1 . . . Zone Layout 1 | . 1 . . . EX-Prototype ID Bank 1 | . . . 1 . Fabricator Hacks . | . . . . . Repair Station Hacks . | . . . . . Recycling Unit Hacks 1 | . 1 . . . Report Inventory 1 | . 1 . . . Scanalyzer . | . . . . . Garrison Access Hacks . | . . . . . Unauthorized Hacks 9 | . 9 . . . Terminals 9 | . 9 . . . Track 4 | . 4 . . . Botnet 5 | . 5 . . . Fabricators . | . . . . . Repair Stations . | . . . . . Recycling Units . | . . . . . Scanalyzers . | . . . . . Garrison Access . | . . . . . Data Cores Recovered . | . . . . . Used . | . . . . . Hacking Detections 5 | . 5 . . . Full Trace Events 1 | . 1 . . . Feedback Events . | . . . . . Feedback Blocked . | . . . . . Robot Schematics Acquired . | . . . . . Robots Built . | . . . . . Authchips . | . . . . . Time . | . . . . . Total Robot Build Rating . | . . . . . Part Schematics Acquired . | . . . . . Parts Built . | . . . . . Authchips . | . . . . . Time . | . . . . . Total Part Build Rating . | . . . . . Parts Repaired . | . . . . . Time . | . . . . . Parts Recycled . | . . . . . Recycled Matter . | . . . . . Retrieved Matter . | . . . . . Retrieved Components . | . . . . . Parts Scanalyzed . | . . . . . Part Schematics Acquired . | . . . . . Parts Damaged . | . . . . . Bothacking | -11 -10 -10 -10 -9 ------------ Run | Jun Mat Min Exi Min Used RIF Installer . | . . . . . Robots Hacked . | . . . . . Non-combat . | . . . . . Combat . | . . . . . Robot Hacks Applied . | . . . . . Relay Couplers Released . | . . . . . Fabnet Peak Effective % . | . . . . . Robots Rewired . | . . . . . Allies Hacked . | . . . . . Hacks Repelled . | . . . . . Allies | -11 -10 -10 -10 -9 -------- Run | Jun Mat Min Exi Min Total Allies . | . . . . . Largest Group . | . . . . . Highest-Rated Group . | . . . . . Highest-Rated Ally . | . . . . . Total Orders . | . . . . . Ally Attacks . | . . . . . Total Damage . | . . . . . Kills . | . . . . . Allies Corrupted . | . . . . . Allies Melted . | . . . . . Intel | -11 -10 -10 -10 -9 ------- Run | Jun Mat Min Exi Min Robot Analysis Total . | . . . . . Derelict Logs Recovered 1 | . . 1 . . Drone Launches . | . . . . . Drone Recoveries . | . . . . . Exploration | -11 -10 -10 -10 -9 ------------- Run | Jun Mat Min Exi Min Turns Passed 2570 | . 1306 61 681 522 Spaces Moved 1362 | 1 613 39 425 284 Core . | . . . . . Treads 1193 | . 445 39 425 284 Legs 169 | 1 168 . . . Wheels . | . . . . . Hover . | . . . . . Flight . | . . . . . Fastest Speed 120 | 120 120 160 160 160 Average Speed 155 | 120 149 160 160 160 Slowest Speed 190 | 120 190 160 160 160 Overloaded Moves . | . . . . . Propulsion Burnouts . | . . . . . Robots Hopped . | . . . . . Cave-ins Triggered . | . . . . . Exploration Rate (%) 55 | 2 99 10 90 75 Regions Visited 4 Branch Regions 3 Pre-discovered Areas 1 | . . 1 . . Known Exits Taken . | . . . . . Unknown Exits Taken 4 | 1 1 1 1 . Scrap Searched 1 | . . . . 1 Spaces Dug 4 | . 4 . . . Terrain Destroyed 27 | . 4 . . 23 Melee 4 | . 4 . . . Projectile . | . . . . . AOE 23 | . . . . 23 Terrain Rammed . | . . . . . Walls Destroyed . | . . . . . Machines Disabled . | . . . . . Actions | -11 -10 -10 -10 -9 --------- Run | Jun Mat Min Exi Min Total 1660 | . 854 38 427 341 Wait 157 | . 113 . . 44 Move 1358 | . 612 38 424 284 Hop . | . . . . . Pick Up 20 | . 17 . 2 1 Fast Attach 3 | . 3 . . . Attach 10 | . 9 . . 1 Detach 2 | . 1 . . 1 Swap 5 | . 4 . . 1 Drop 10 | . 9 . 1 . Fire 78 | . 69 . . 9 Melee 16 | . 16 . . . Ram . | . . . . . Kick . | . . . . . Crush 1 | . 1 . . . Escape Stasis . | . . . . . Rewire . | . . . . . Trap . | . . . . . Miscellaneous . | . . . . . Route ------- -11/Junkyard -10/Materials (discovered 5 exits: [*Mat x3] / [*Min x2]) -10/Mines -10/Exiles (discovered 2 exits: [*Min x2]) -9/Mines (discovered 1 exit: [*Mat]) History --------- Turn | Location | Event 1 | -11/Junkyard | Discovered new exit (range 0) 1 | -11/Junkyard | Entered Materials 314 | -10/Materials | Build established: Mutant 424 | -10/Materials | Core integrity fell below 50% 445 | -10/Materials | Core integrity fell below 20% 464 | -10/Materials | Lost 6 parts (1p2n3w) 487 | -10/Materials | Discovered new exit (range 10) 635 | -10/Materials | Discovered new exit (range 6) 686 | -10/Materials | Discovered new exit (range 15) 822 | -10/Materials | Discovered new exit (range 4) 1122 | -10/Materials | Lost 4 parts (1p2n1w) 1195 | -10/Materials | Discovered new exit (range 6) 1307 | -10/Materials | Entered Mines 1309 | -10/Mines | Met a Derelict bent on vengeance 1341 | -10/Mines | Learned location of Zion (-6) 1349 | -10/Mines | Deemed a non-threat by the Exiles lab entrance 1349 | -10/Mines | Discovered new exit (range 5) 1368 | -10/Mines | Entered Exiles 1392 | -10/Exiles | Discovered new exit (range 15) 1444 | -10/Exiles | Met 8R-AWN 1471 | -10/Exiles | Met EX-HEX 1519 | -10/Exiles | Met EX-BIN 1541 | -10/Exiles | Aligned with FarCom system 1543 | -10/Exiles | Given EX-Vault access code 1583 | -10/Exiles | Opened EX-Vault 1607 | -10/Exiles | Found Chronowheel 1638 | -10/Exiles | Warned to stay clear of 0b10 Research branches 1694 | -10/Exiles | Met EX-DEC 1794 | -10/Exiles | Visited The Gauntlet 2033 | -10/Exiles | Discovered new exit (range 10) 2049 | -10/Exiles | Left Exiles lab with Chronowheel 2049 | -10/Exiles | Entered Mines 2084 | -9/Mines | Received a Rocket Launcher from a helpful Derelict 2520 | -9/Mines | Discovered new exit (range 7) 2571 | -9/Mines | Destroyed by G-34 Mercenary with Small Laser Last Messages --------------- 02084_ TB-0SN(g) slips back into the shadows. 02086_ Acquired Rocket Launcher. 02228_ U-05 Engineer lays Concrete. 02229_ T-07 Excavator is excavating. 02229_ U-05 Engineer lays Concrete. 02231_ U-05 Engineer builds a Wall. 02233_ T-07 Excavator is excavating. 02315_ K-01 Serf collects debris. 02520_ EXIT=FOUND 02522_ Searching scrap... 02522_ Found Med. Armor Plating. 02522_ Found 17 Matter. 02522_ Found Mace. 02522_ Found 20 Matter. 02523_ Acquired 6 matter. 02550_ Core Extractor disabled. 02552_ G-34 Mercenary destroyed. 02554_ The unstable cave ceiling collapses. 02561_ Hvy. Assault Rifle severed. 02563_ L-31 Rogue destroyed. Map ----- +----------------------------------------------------+ | ??## ????????## #????????????? | | ?## ##???????## #????????????? | | ## #????????# ##????????????? | | # ???????## ##???###???????? | | ????#### ##?## ####????? | | #???## ### #????? | | # """ #???# #????? | | # """ ##### ## #????? | | # """ ## ## ##????????? | | # ## ### #### #?????????? | | # #?####??## #?????????? | | ?# #???###??## #????????? | | ?# ####?### ##??## #???????? | | ?# ##???## #???## ##???????? | | ?# #????# #????# ##????????? | | ?## ##???# #????# ##?????????? | | ??## #????# #????# ##???????? #? | | ???# ##???## #????####??????"" #? | | ???# ###### ##?????????????"" #? | | ???# ## ###??????????""" #? | | ???## tu ###???????? #? | | ????## ## ##?????? #? | | ????# # ##????? < #? | | ????# # ##??? % #? | | ???## ## ## ## ## / #? | | ???# ############ @%% # | | ???## ##??????????# g! ! ## | | ????#####???????????# ## # | | ????????????????????## ##? # | | ?????????????????????####??? ## # | | ?????????????????????????????##???###? | | ?????????????????????????????????????? | | | | | | | | | | | | | | | | | | | | | | | | | | | | | | | | | | | | | +----------------------------------------------------+ Best States ------------- Heat Dissipation 35 Energy Generation 10 Energy Capacity 250 Matter Stores 300 Matter Capacity 300 Sight Range 16 Terrain Scan Density 10 Evasion (%) 55 Recoil Reduction 2 Item Schematics ----------------- None Robot Schematics ------------------ None Fabricated ------------ Nothing Alien Tech Used ----------------- None Achievements -------------- Quantum Hacking True Hacker Challenges ------------ None Game ------ Seed NavigationDefenseMatter Manual? 0 Play Time 00:33:27 Cumulative 48.9 hours Start 2023.11.15 @ 17:07:12 End 2023.11.15 @ 20:32:34 Sessions 1 Manual Loads 0 Difficulty Rogue Special Mode None Game No. 52 Rogue 52 Adventurer 0 Explorer 0 Win Type - Total 0 Types 0/0/0/0/0/0/0/0/0 Lore% 29 Gallery% 32 Achievement% 30 Wizard Run 0 Options --------- ASCII 0 Keyboard 0 Movement Numpad Keybinds 0 Fullscreen 1 Font 24/Proggy Map View 113x50 Tactical HUD 1 Map Filters NONE Filters NONE Steam 1 RUN: 646e71c9-d873-4193-8399-aff594fdf8fa